bitfinex/quotes_SOLUSD_20250131
["timestamp","ask_amount","ask_price","bid_price","bid_amount"]
[1738336745597,2.679871,238.37,238.26,4.88944315]
[1738336745598,2.42828404,238.37,238.26,4.88944315]
[1738336745807,0.4194,238.39,238.29,12.69533955]
[1738336745998,20.0,238.37,238.3,0.62933639]
[1738336746197,0.74841304,238.41,238.34,12.69533955]
[1738336746509,1.82330595,238.44,238.37,12.69533955]
[1738336746673,0.74841304,238.44,238.36,20.27377956]
[1738336746876,0.74841304,238.44,238.37,0.62922891]
[1738336747523,20.0,238.42,238.36,20.27377956]
[1738336747709,0.74841304,238.47,238.39,20.27377956]
[1738336748009,0.74841304,238.47,238.4,0.6291244]
[1738336748184,0.74841304,238.47,238.39,20.90288226]
[1738336748979,20.0,238.48,238.39,20.90288226]
[1738336749206,0.87390304,238.5,238.41,20.27377956]
[1738336749385,0.87390304,238.5,238.39,20.90284369]
[1738336749585,1.29310304,238.5,238.39,20.90284369]
[1738336749894,20.0,238.48,238.39,0.62906413]
[1738336750504,0.03,238.44,238.4,0.62906635]
[1738336750976,0.03,238.44,238.41,20.27377956]
[1738336751176,0.03,238.44,238.42,0.62900985]
[1738336752094,0.03,238.44,238.43,0.62901037]
[1738336752295,0.03,238.44,238.39,24.46837956]
[1738336752495,0.03,238.44,238.4,0.62907958]
[1738336753404,0.03,238.44,238.39,0.62908534]
[1738336753616,0.03,238.44,238.41,0.62908534]
[1738336753923,0.03,238.44,238.39,0.6290859]
[1738336754326,0.03,238.44,238.32,26.85935956]
[1738336754327,0.03,238.44,238.33,0.62908694]
[1738336754516,20.0,238.42,238.31,1.5651]
[1738336754715,20.0,238.42,238.33,20.27377956]
[1738336755042,0.74841304,238.41,238.34,0.62921099]
[1738336755232,0.74841304,238.41,238.31,1.5651]
[1738336755233,20.0,238.42,238.31,1.5651]
[1738336755414,14.16026157,238.41,238.31,1.5651]
[1738336755618,20.0,238.38,238.31,1.5651]
[1738336755823,0.74841304,238.37,238.29,0.62935992]
[1738336756023,1.16791304,238.37,238.29,0.62935992]
[1738336756539,1.16791304,238.37,238.26,0.063]
[1738336756692,1.16791304,238.37,238.27,0.62940149]
[1738336757125,13.41184853,238.36,238.26,0.063]
[1738336757426,0.74841304,238.35,238.26,0.063]
[1738336757632,20.0,238.33,238.26,0.063]
[1738336757835,0.74841304,238.32,238.26,0.063]
[1738336758011,1.16801304,238.32,238.26,0.063]
[1738336758331,20.0,238.28,238.26,0.063]
[1738336758524,0.87390304,238.27,238.26,0.063]
[1738336758699,34.28575157,238.27,238.26,0.063]
[1738336760351,0.12549,238.26,238.22,0.063]
[1738336760519,0.12549,238.23,238.22,0.063]
[1738336760858,0.87390304,238.23,238.22,0.063]
[1738336761624,0.74841304,238.23,238.22,0.063]
[1738336761820,0.74841304,238.26,238.22,0.063]
[1738336762028,0.74841304,238.29,238.22,0.063]
[1738336762250,0.4195,238.34,238.22,24.53437956]
[1738336762433,0.74841304,238.33,238.23,0.62954103]
[1738336762625,20.74841304,238.33,238.23,0.62954103]
[1738336762827,0.74841304,238.35,238.26,20.27377956]
[1738336763144,80.6,238.36,238.28,20.27377956]
[1738336763326,80.6,238.36,238.29,0.62937667]
[1738336763532,0.74841304,238.35,238.26,0.063]
[1738336763851,0.74841304,238.38,238.26,20.33677956]
[1738336764150,0.74841304,238.38,238.29,4.1965]
[1738336764348,0.74841304,238.38,238.3,20.90312661]
[1738336764523,0.74841304,238.38,238.3,0.62934705]
[1738336764724,20.0,238.39,238.3,0.62934705]
[1738336764919,0.74841304,238.38,238.26,0.063]
[1738336765143,0.12549,238.37,238.26,0.063]
[1738336765347,0.74841304,238.36,238.26,0.063]
[1738336766546,0.74841304,238.36,238.27,0.62947957]
[1738336766745,1.16791304,238.36,238.27,0.62947957]
[1738336768360,1.16791304,238.36,238.27,4.82637957]
[1738336768858,1.16791304,238.36,238.27,0.62947957]
[1738336769555,2.21671304,238.36,238.26,0.69244923]
[1738336769759,20.0,238.32,238.26,0.063]
[1738336769956,20.0,238.28,238.26,0.063]
[1738336770160,14.16026157,238.27,238.26,0.063]
[1738336770468,14.57986157,238.27,238.26,0.063]
[1738336773155,14.70535157,238.27,238.26,0.063]
[1738336774163,1.29350304,238.27,238.26,0.063]
[1738336774464,21.29350304,238.27,238.26,0.063]
[1738336774858,20.0,238.27,238.26,0.063]
[1738336775032,13.41184853,238.33,238.26,0.063]
[1738336775369,80.6,238.34,238.26,4.26]
[1738336775867,81.0195,238.34,238.26,0.063]
[1738336776540,0.4195,238.34,238.26,4.26]
[1738336776966,0.4195,238.34,238.26,0.063]
[1738336777171,20.0,238.27,238.26,0.063]
[1738336777466,33.41184853,238.27,238.26,0.063]
[1738336778448,13.41184853,238.33,238.26,0.063]
[1738336779741,0.4195,238.34,238.26,0.063]
[1738336779961,0.4195,238.34,238.26,4.26]
[1738336780164,13.83134853,238.36,238.27,1.634]
[1738336780462,13.41184853,238.32,238.27,1.634]
[1738336780780,20.0,238.29,238.26,0.063]
[1738336781746,13.41184853,238.32,238.26,0.063]
[1738336781747,13.53733853,238.28,238.26,0.063]
[1738336782045,33.53733853,238.27,238.26,0.063]
[1738336782250,0.12549,238.26,238.22,0.063]
[1738336782572,20.12549,238.21,238.19,0.063]
[1738336782742,1.0,238.23,238.13,0.063]
[1738336782743,0.12549,238.16,238.13,0.063]
[1738336783066,0.12549,238.14,238.13,0.063]
[1738336783255,0.12549,238.14,238.03,6.59463127]
[1738336783575,0.12549,238.09,238.03,6.59463127]
[1738336783748,0.12549,238.05,238.03,6.59463127]
[1738336783951,20.0,238.06,238.03,6.59463127]
[1738336784470,0.12549,238.05,238.02,0.063]
[1738336784665,0.54549,238.05,238.02,0.063]
[1738336784870,20.0,238.06,238.02,0.063]
[1738336785183,0.12549,238.05,238.02,0.063]
[1738336787058,20.12549,238.03,238.02,0.063]
[1738336787264,20.0,238.03,238.02,0.063]
[1738336787464,0.25098,238.06,238.02,0.063]
[1738336787665,0.12549,238.04,238.02,0.063]
[1738336789382,20.0,238.05,237.98,0.063]
[1738336789383,20.0,238.08,237.98,0.63026491]
[1738336790069,20.0,238.08,237.98,20.90404447]
[1738336790467,81.0199,238.15,237.98,20.90404447]
[1738336790675,13.41184853,238.14,238.02,20.27377956]
[1738336790874,20.0,238.11,238.03,0.630089]
[1738336791371,20.0,238.11,238.04,4.2009]
[1738336791892,20.0,238.14,238.04,4.2009]
[1738336792061,0.4198,238.16,238.04,4.2009]
[1738336792457,13.41184853,238.17,238.04,24.47467956]
[1738336792664,13.83164853,238.17,238.04,24.47467956]
[1738336792859,0.12549,238.13,238.04,24.47467956]
[1738336793358,13.53733853,238.13,238.04,4.2009]
[1738336793558,13.95723853,238.13,237.98,4.202]
[1738336793884,13.95723853,238.13,237.98,4.83220961]
[1738336794380,13.53733853,238.13,238.01,20.27377956]
[1738336794686,0.12549,238.13,238.03,20.27377956]
[1738336794863,0.12549,238.13,238.04,0.6300448]
[1738336795184,0.12549,238.14,238.04,0.6300448]
[1738336795685,0.12549,238.14,238.05,4.2007]
[1738336795988,20.12549,238.14,238.05,4.2007]
[1738336796969,20.12549,238.14,238.06,0.63004203]
[1738336797165,0.4197,238.22,238.07,21.85697956]
[1738336797497,13.41184853,238.24,238.09,20.27377956]
[1738336797668,20.0,238.21,238.11,4.1997]
[1738336797867,20.0,238.21,238.11,4.82952281]
[1738336798078,20.0,238.17,238.08,4.2002]
[1738336798292,20.0,238.17,238.07,5.7836]
[1738336798793,0.62996583,238.16,238.03,13.68734539]
[1738336799170,0.62996583,238.16,238.04,0.6299966]
[1738336799569,0.063,238.14,238.04,0.6299966]
[1738336799969,0.063,238.14,238.04,4.8308966]
[1738336800171,0.69296583,238.14,238.04,4.8308966]
[1738336801003,0.063,238.14,238.09,20.27377956]
[1738336801166,0.063,238.14,238.1,0.6298378]
[1738336801803,0.063,238.14,238.1,2.1826378]
[1738336801996,0.063,238.14,238.11,4.1997]
[1738336802182,0.063,238.14,238.12,0.62981755]
[1738336802580,0.063,238.14,238.13,20.27377956]
[1738336802771,0.063,238.14,238.12,0.62981755]
[1738336803271,0.063,238.14,238.11,4.1997]
[1738336803503,0.063,238.14,238.07,0.6298956]
[1738336803799,0.69296583,238.14,238.05,4.83063142]
[1738336804201,0.063,238.14,238.05,25.10441098]
[1738336804382,0.063,238.14,238.06,20.27377956]
[1738336804584,0.063,238.14,238.08,20.27377956]
[1738336804790,0.063,238.14,238.12,20.27377956]
[1738336805010,0.063,238.14,238.13,0.6297872]
[1738336805881,0.063,238.14,238.13,4.8290872]
[1738336806603,0.62996583,238.26,238.13,25.89203573]
[1738336806899,0.03,238.27,238.2,20.27377956]
[1738336807099,0.03,238.27,238.21,0.62956461]
[1738336807619,0.03,238.27,238.25,20.27377956]
[1738336807804,0.03,238.27,238.23,20.27377956]
[1738336807979,0.03,238.27,238.24,0.62952973]
[1738336808376,0.03,238.27,238.17,23.90814853]
[1738336808377,0.03,238.27,238.19,20.27377956]
[1738336808594,0.03,238.27,238.18,4.82790439]
[1738336808802,0.03,238.27,238.18,0.62960439]
[1738336809010,20.0,238.24,238.14,3.74971315]
[1738336809202,0.75545583,238.23,238.13,2.22210194]
[1738336809404,0.75545583,238.23,238.13,1.5923]
[1738336809583,0.75545583,238.23,238.13,5.7916]
[1738336809982,0.8395,238.22,238.13,1.5923]
[1738336810296,0.62996583,238.21,238.13,1.5923]
[1738336810486,0.62996583,238.21,238.14,0.62982773]
[1738336810807,1.46946583,238.23,238.13,1.5923]
[1738336811312,13.53733853,238.22,238.1,4.1997]
[1738336811523,13.53733853,238.18,238.09,0.62981917]
[1738336811694,13.66282853,238.22,238.07,1.6063]
[1738336811695,0.62996583,238.17,238.07,1.6063]
[1738336811898,20.0,238.17,238.08,0.62995421]
[1738336812203,0.62996583,238.16,238.09,4.2]
[1738336812407,0.62996583,238.16,238.08,0.62995421]
[1738336812612,0.62996583,238.16,238.04,4.2008]
[1738336812813,0.62996583,238.16,238.05,0.63003677]
[1738336813119,0.62996583,238.16,238.05,20.90381633]
[1738336813722,0.62996583,238.16,238.06,20.27377956]
[1738336813912,0.62996583,238.16,238.08,4.2002]
[1738336814307,0.12549,238.15,238.05,0.62996392]
[1738336814612,20.12549,238.13,238.03,0.66002136]
[1738336814815,0.62996583,238.12,238.03,4.86119721]
[1738336816217,20.0,238.14,238.07,20.27377956]
[1738336816525,20.0,238.14,238.05,20.27377956]
[1738336816820,0.62996583,238.13,238.06,0.62998981]
[1738336816990,0.62996583,238.13,238.04,0.63000521]
[1738336817191,0.62996583,238.13,238.03,4.2311]
[1738336820733,81.4396,238.19,238.11,20.27377956]
[1738336820939,0.62996583,238.18,238.09,20.27377956]
[1738336821228,0.62996583,238.18,238.1,0.62988644]
[1738336821405,0.62996583,238.18,238.09,20.27377956]
[1738336821725,20.62996583,238.18,238.07,20.27377956]
[1738336821931,20.62996583,238.18,238.08,0.62991145]
[1738336822114,0.62996583,238.18,238.09,24.47377956]
[1738336822312,1.46956583,238.2,238.1,0.62987667]
[1738336822811,0.62996583,238.24,238.15,20.27377956]
[1738336823013,20.62996583,238.24,238.15,20.27377956]
[1738336823204,0.063,238.14,238.1,0.62973807]
[1738336823405,0.063,238.14,238.03,20.30377956]
[1738336823625,0.69296583,238.14,238.04,0.63001351]
[1738336823934,0.063,238.14,238.09,20.27377956]
[1738336824103,0.063,238.14,238.13,24.47307956]
[1738336825611,0.0001,238.14,238.13,46.91619809]
[1738336825823,0.03,238.27,238.2,20.0]
[1738336826029,0.03,238.27,238.26,20.27377956]
[1738336826202,0.03,238.27,238.26,24.47077956]
[1738336827517,0.03,238.27,238.23,20.27377956]
[1738336827705,0.03,238.27,238.22,0.62954045]
[1738336827907,0.03,238.27,238.18,4.1983]
[1738336828213,0.03,238.27,238.2,4.1981]
[1738336828407,0.03,238.27,238.21,0.62953631]
[1738336829439,0.12549,238.22,238.11,0.62961575]
[1738336829739,0.12549,238.13,238.04,6.59463127]
[1738336829911,0.62996583,238.12,238.05,0.62999724]
[1738336830239,0.62996583,238.12,238.04,7.22467042]
[1738336831110,20.0,238.08,238.04,6.59463127]
[1738336831303,0.62996583,238.07,238.04,6.59463127]
[1738336831834,13.41184853,238.06,238.04,6.59463127]
[1738336832047,14.04181436,238.05,238.04,6.59463127]
[1738336832543,14.04181436,238.05,238.03,0.03]
[1738336833342,0.62996583,238.05,238.03,0.03]
[1738336833634,20.0,238.06,238.03,0.03]
[1738336833937,0.62996583,238.05,238.03,0.03]
[1738336834240,0.62996583,238.08,238.03,0.03]
[1738336834412,20.0,238.09,238.03,0.03]
[1738336834608,0.62996583,238.08,238.03,0.03]
[1738336835813,13.66282853,238.07,238.03,0.03]
[1738336836013,33.78831853,238.04,238.03,0.03]
[1738336836237,0.12549,237.99,237.95,0.063]
[1738336836536,0.62996583,237.98,237.95,0.063]
[1738336838239,1.47036583,237.98,237.95,0.063]
[1738336838543,13.53733853,237.97,237.95,0.063]
[1738336838719,14.16730436,237.96,237.95,0.063]
[1738336841923,14.29279436,237.96,237.95,0.063]
[1738336842442,0.62996583,237.99,237.95,0.063]
[1738336843145,0.12549,237.98,237.95,0.063]
[1738336843346,0.62996583,237.97,237.95,0.063]
[1738336844440,0.62996583,238.0,237.95,4.2655]
[1738336844620,0.62996583,238.03,237.95,4.2655]
[1738336844818,0.12549,238.02,237.95,4.2655]
[1738336845024,0.12549,237.98,237.95,0.063]
[1738336845225,0.62996583,237.97,237.95,0.063]
[1738336845422,0.62996583,237.98,237.95,0.063]
[1738336846047,0.12549,237.99,237.95,0.063]
[1738336846247,0.62996583,237.98,237.95,0.063]
[1738336846549,0.12549,238.01,237.95,4.2655]
[1738336846734,0.62996583,238.02,237.96,0.630331]
[1738336846932,0.62996583,238.04,237.95,4.2655]
[1738336847149,20.12549,238.03,237.95,4.2655]
[1738336847439,0.12549,238.01,237.95,0.063]
[1738336847648,0.62996583,238.0,237.95,0.063]
[1738336849043,0.62996583,238.02,237.95,4.2654]
[1738336849247,0.62996583,238.02,237.95,4.89575775]
[1738336850142,0.62996583,238.03,237.95,4.89575775]
[1738336850338,0.62996583,238.03,237.95,4.2654]
[1738336850540,1.47016583,238.03,237.95,4.2654]
[1738336850723,0.12549,238.02,237.95,0.063]
[1738336850923,20.62996583,238.02,237.95,4.89588572]
[1738336851125,23.48144,238.13,237.96,7.6824]
[1738336851324,0.063,238.14,238.08,20.27377956]
[1738336851325,0.62996583,238.12,238.08,20.27377956]
[1738336851551,0.063,238.14,238.1,20.27377956]
[1738336851748,0.063,238.14,237.99,14.29284056]
[1738336851749,0.063,238.14,238.11,0.62993082]
[1738336852256,0.063,238.14,238.09,4.2]
[1738336852427,0.063,238.14,238.05,4.2007]
[1738336852827,0.063,238.14,238.06,0.63001497]
[1738336853024,13.53733853,238.13,238.03,4.201]
[1738336853364,0.12549,238.11,238.0,3.74996677]
[1738336853538,20.62996583,238.12,238.01,24.2013]
[1738336853736,0.063,238.14,238.06,20.27377956]
[1738336853937,0.063,238.14,238.08,20.27377956]
[1738336854141,0.063,238.14,238.09,0.62978238]
[1738336854342,0.063,238.14,238.08,4.2001]
[1738336854543,0.063,238.14,238.08,4.8300407]
[1738336854746,0.063,238.14,238.05,0.6299407]
[1738336854943,0.12549,238.13,238.02,4.2011]
[1738336855245,0.62996583,238.12,238.03,0.63007742]
[1738336855429,20.12549,238.11,238.0,3.75010567]
[1738336855634,0.12549,238.09,238.0,3.12]
[1738336855836,0.62996583,238.08,238.0,3.12]
[1738336856429,1.46996583,238.08,237.98,4.2019]
[1738336857068,1.46996583,238.08,237.99,0.63020328]
[1738336857730,13.41184853,238.07,237.96,12.51483856]
[1738336857933,20.62996583,238.06,237.96,6.35123856]
[1738336858558,20.62996583,238.06,237.95,20.69327341]
[1738336858739,20.62996583,238.06,237.95,24.89577341]
[1738336859255,20.62996583,238.06,237.95,4.89577341]
[1738336859460,13.41184853,238.05,237.95,0.063]
[1738336859763,13.41184853,238.03,237.95,0.063]
[1738336859965,13.41184853,238.01,237.95,0.063]
[1738336860186,13.41184853,237.99,237.95,0.063]
[1738336860353,0.62996583,237.98,237.95,0.063]
[1738336861242,14.04181436,237.99,237.95,0.063]
[1738336861444,0.12549,237.98,237.95,0.063]
[1738336861760,14.04181436,237.99,237.95,0.063]
[1738336861761,33.53733853,237.96,237.95,0.063]
[1738336862756,0.12549,237.91,237.9,0.063]
[1738336862969,20.0,237.92,237.9,0.063]
[1738336862970,0.62996583,237.92,237.9,0.063]
[1738336863459,13.53733853,237.91,237.9,0.063]
[1738336863641,14.37793853,237.91,237.9,0.063]
[1738336864043,14.37793853,237.91,237.79,0.063]
[1738336864245,20.0,237.88,237.79,4.2683]
[1738336864453,0.62996583,237.87,237.8,0.63072804]
[1738336864658,20.0,237.88,237.81,0.63069632]
[1738336864874,0.62996583,237.87,237.8,0.63065345]
[1738336865077,0.62996583,237.87,237.79,4.2683]
[1738336865669,0.62996583,237.87,237.79,0.063]
[1738336865964,20.0,237.83,237.79,0.063]
[1738336866162,0.62996583,237.82,237.79,0.063]
[1738336866357,20.0,237.83,237.79,0.063]
[1738336866539,20.0,237.81,237.79,0.063]
[1738336866743,0.62996583,237.8,237.79,0.063]
[1738336866968,0.62996583,237.8,237.78,0.03]
[1738336866969,0.12549,237.79,237.78,0.03]
[1738336867166,0.12549,237.79,237.73,0.063]
[1738336867167,20.0,237.74,237.73,0.063]
[1738336867473,20.62996583,237.74,237.73,0.063]
[1738336867686,0.62996583,237.75,237.73,0.063]
[1738336868371,0.62996583,237.78,237.73,0.063]
[1738336868668,0.62996583,237.83,237.73,4.90029452]
[1738336868971,20.62996583,237.83,237.73,4.90029452]
[1738336870273,20.62996583,237.83,237.74,20.27377956]
[1738336870450,20.62996583,237.83,237.75,0.63081368]
[1738336870649,0.62996583,237.85,237.75,0.63081368]
[1738336870867,20.0,237.85,237.76,20.27377956]
[1738336871067,0.62996583,237.87,237.77,0.63069413]
[1738336871376,0.12549,237.89,237.78,20.27377956]
[1738336871589,0.12549,237.87,237.79,0.63067051]
[1738336871889,20.12549,237.85,237.75,4.2059]
[1738336872076,20.0,237.85,237.76,0.63077247]
[1738336872279,0.62996583,237.84,237.76,0.63077247]
[1738336873183,20.0,237.85,237.76,20.90455203]
[1738336873383,0.62996583,237.87,237.76,20.90455203]
[1738336873768,0.62996583,237.87,237.78,20.27377956]
[1738336873975,0.62996583,237.87,237.79,0.63066983]
[1738336874288,0.62996583,237.91,237.79,0.63066983]
[1738336874482,20.62996583,237.91,237.79,0.63066983]
[1738336875894,21.47056583,237.91,237.8,4.2052]
[1738336876098,21.47056583,237.91,237.81,0.63064577]
[1738336876976,21.47056583,237.91,237.82,4.2048]
[1738336877187,20.62996583,237.91,237.83,0.63060065]
[1738336877496,0.62996583,237.91,237.83,0.63060065]
[1738336877687,0.62996583,237.91,237.79,4.2052]
[1738336877688,13.41184853,237.91,237.79,4.2052]
[1738336877882,13.53733853,237.89,237.77,5.7965]
[1738336878083,22.942,237.93,237.77,5.7965]
[1738336878084,13.53733853,237.87,237.77,1.591]
[1738336878388,80.6,237.96,237.85,20.27377956]
[1738336878389,0.62996583,237.95,237.85,20.27377956]
[1738336878703,13.47484853,237.99,237.86,0.6304849]
[1738336878907,20.0,237.94,237.86,0.6304849]
[1738336879095,0.62996583,237.93,237.86,4.8344849]
[1738336879272,20.0,237.94,237.86,4.8344849]
[1738336879669,20.62996583,237.98,237.86,15.3447849]
[1738336879868,0.063,237.99,237.89,20.27377956]
[1738336880076,0.063,237.99,237.9,2.25833749]
[1738336880283,20.063,237.99,237.9,2.25833749]
[1738336880698,0.62996583,237.98,237.9,2.25833749]
[1738336880896,0.12549,237.97,237.87,0.63044329]
[1738336881069,0.96599,237.95,237.86,4.204]
[1738336881272,0.62996583,237.94,237.84,4.83480615]
[1738336881576,0.063,237.99,237.89,20.27377956]
[1738336881780,0.063,237.99,237.91,20.27377956]
[1738336881982,0.063,237.99,237.92,0.6302703]
[1738336882187,0.063,237.99,237.93,20.27377956]
[1738336882367,0.063,237.99,237.94,0.63019973]
[1738336882574,0.063,237.99,237.95,20.27377956]
[1738336882799,0.063,237.99,237.96,0.63016382]
[1738336883299,0.063,237.99,237.98,1.6202]
[1738336883478,0.063,237.99,237.98,42.52406335]
[1738336884003,0.063,237.99,237.98,42.64955335]
[1738336885105,0.063,237.99,237.98,22.25028379]
[1738336885697,0.063,237.99,237.98,0.63008379]
[1738336886072,0.063,237.99,237.95,4.83260532]
[1738336886274,0.063,237.99,237.98,20.27377956]
[1738336886480,0.063,237.99,237.98,41.02935221]
[1738336886995,0.063,237.99,237.98,0.63008265]
[1738336887191,0.063,237.99,237.97,20.0]
[1738336887393,0.063,237.99,237.98,0.63020494]
[1738336888180,0.063,237.99,237.98,20.9039845]
[1738336888696,0.063,237.99,237.98,0.63020494]
[1738336888997,0.063,237.99,237.95,0.6301786]
[1738336889501,0.063,237.99,237.95,4.8324786]
[1738336890702,0.063,237.99,237.96,20.27377956]
[1738336890910,0.063,237.99,237.97,0.63019506]
[1738336891598,0.063,237.99,237.97,4.83219506]
[1738336892303,0.063,237.99,237.98,20.39926956]
[1738336892472,0.063,238.08,237.98,20.39926956]
[1738336892473,0.063,238.08,238.01,20.0]
[1738336892675,0.063,238.08,238.03,20.27377956]
[1738336892870,0.063,238.08,238.04,0.62997138]
[1738336893601,0.063,238.08,238.05,4.2007]
[1738336893803,0.063,238.08,238.06,0.62993905]
[1738336894379,0.063,238.08,238.07,40.39926956]
[1738336894592,0.0001,238.08,238.07,57.16209809]
[1738336894793,0.0001,238.08,238.07,58.16209809]
[1738336895010,0.0001,238.08,238.07,58.28758809]
[1738336895597,0.0001,238.08,238.07,27.3004]
[1738336895984,0.0001,238.08,238.07,23.1]
[1738336896295,0.0001,238.08,238.07,3.1]
[1738336896600,0.0001,238.08,238.03,0.62990053]
[1738336896900,0.0001,238.08,238.03,24.83080053]
[1738336897099,0.0001,238.08,238.03,0.62990053]
[1738336897304,0.0001,238.08,238.04,0.63004423]
[1738336897484,0.0001,238.08,238.02,0.63004847]
[1738336897899,0.0001,238.08,238.0,0.63008087]
[1738336898083,0.0001,238.08,238.0,4.83168087]
[1738336898494,0.0001,238.08,238.01,20.0]
[1738336898694,0.0001,238.08,238.02,0.63011745]
[1738336900709,0.62996583,238.07,237.97,0.63013433]
[1738336901011,0.62996583,238.07,237.97,4.83223433]
[1738336901302,0.62996583,238.07,237.97,24.83223433]
[1738336901513,20.0001,238.08,237.97,24.83223433]
[1738336901914,1.47006583,238.07,237.97,4.83223433]
[1738336902615,1.47006583,238.07,237.97,24.83223433]
[1738336904710,0.62996583,238.07,237.97,4.83223433]
[1738336904909,0.0001,238.08,237.98,20.27377956]
[1738336905109,0.0001,238.08,237.99,0.63008165]
[1738336905613,0.63006583,238.08,237.99,0.63008165]
[1738336905805,21.47006583,238.08,237.99,0.63008165]
[1738336906224,20.63006583,238.08,237.99,0.63008165]
[1738336906520,21.47006583,238.08,237.99,0.63008165]
[1738336906919,21.47006583,238.08,237.99,4.83178165]
[1738336907109,21.47006583,238.08,237.97,20.0]
[1738336907110,21.47006583,238.08,237.98,0.63018525]
[1738336907502,21.47006583,238.08,237.98,4.83208525]
[1738336908211,0.0001,238.08,238.01,20.0]
[1738336908548,0.0001,238.08,238.02,20.90377394]
[1738336909415,0.0001,238.08,238.03,4.2011]
[1738336909725,0.0001,238.08,238.04,0.62993921]
[1738336910598,0.0001,238.08,238.04,20.90371877]
[1738336911434,0.0001,238.08,238.06,20.27377956]
[1738336911601,0.0001,238.08,238.07,0.62982089]
[1738336913130,0.0001,238.08,238.07,14.29264942]
[1738336913534,0.0001,238.08,238.07,18.49304942]
[1738336914019,0.0001,238.08,238.07,4.95571089]
[1738336914917,0.0001,238.08,238.07,18.49304942]
[1738336917242,0.0001,238.08,238.07,45.10400045]
[1738336917547,0.0001,238.08,238.07,24.83022089]
[1738336917900,0.0001,238.08,238.07,0.62982089]
[1738336918205,0.0001,238.08,238.07,4.83022089]
[1738336919130,0.0001,238.08,238.07,0.62982089]
[1738336919339,0.0001,238.08,237.96,48.65557956]
[1738336919340,0.0001,238.08,238.0,0.62998954]
[1738336919635,0.0001,238.08,238.0,4.2016]
[1738336919831,0.0001,238.08,238.01,0.63010079]
[1738336920542,6.1918,238.08,237.99,0.03]
[1738336920702,6.82176583,238.08,237.99,4.2317]
[1738336920903,6.1918,238.08,238.01,4.2015]
[1738336921102,0.0001,238.08,238.02,0.63010748]
[1738336921843,0.0001,238.08,238.02,20.90388704]
[1738336922251,0.0001,238.08,238.02,0.63010748]
[1738336923244,0.0001,238.08,237.99,4.86190469]
[1738336923420,13.53743853,238.08,237.99,0.03]
[1738336923618,0.62996583,238.07,237.99,0.03]
[1738336924024,0.62996583,238.07,237.99,4.2318]
[1738336924636,0.12549,238.04,237.99,0.03]
[1738336924840,0.62996583,238.03,237.99,0.03]
[1738336925349,1.47016583,238.03,237.99,0.03]
[1738336927033,0.62996583,238.03,237.99,0.03]
[1738336927552,0.0001,238.08,237.99,0.03]
[1738336927841,0.0001,238.08,238.02,20.27377956]
[1738336928048,0.0001,238.08,238.04,20.27377956]
[1738336928265,0.0001,238.08,238.06,20.27377956]
[1738336928422,0.0001,238.08,238.07,0.62982641]
[1738336929322,0.0001,238.08,238.07,4.83022641]
[1738336930354,0.0001,238.08,238.07,4.95571641]
[1738336930651,0.0001,238.08,238.07,19.74403494]
[1738336930851,0.0001,238.08,238.07,41.0178145]
[1738336931149,0.063,238.14,238.13,20.39926956]
[1738336931343,0.063,238.14,238.13,21.0289427]
[1738336931542,0.063,238.14,238.13,25.1027527]
[1738336931925,0.063,238.14,238.13,20.9034527]
[1738336933458,0.063,238.14,238.13,34.81726123]
[1738336933644,0.063,238.14,238.13,35.81726123]
[1738336933822,0.063,238.14,238.13,0.62967314]
[1738336934022,0.063,238.14,238.1,0.62972357]
[1738336934225,0.063,238.14,238.07,0.62988506]
[1738336935151,0.063,238.14,238.08,0.62991184]
[1738336935449,0.063,238.14,238.05,4.83058492]
[1738336936026,0.063,238.14,238.06,20.0]
[1738336936241,0.063,238.14,238.07,0.62989321]
[1738336937651,0.063,238.14,238.08,4.2002]
[1738336937855,0.063,238.14,238.09,0.62980586]